[Event "GrandPrix_29.05"]
[Site "Chess.com"]
[Date "2020.05.29"]
[Round "7"]
[White "TheEternalPatzer"]
[Black "friesnielsen2302"]
[Result "1/2-1/2"]
[WhiteElo "2033"]
[BlackElo "1876"]
[TimeControl "600+2"]
[EndTime "12:31:07 PDT"]
[Termination "Game drawn by agreement"]

1. c4 {[%clk 0:10:01.9]} 1... Nf6 {[%clk 0:09:42.2]} 2. Nc3 {[%clk 0:09:57.9]}
2... d6 {[%clk 0:09:43]} 3. e4 {[%clk 0:09:54.6]} 3... e5 {[%clk 0:09:39.9]} 4.
h3 {[%clk 0:09:41.6]} 4... Nbd7 {[%clk 0:09:24.4]} 5. d3 {[%clk 0:09:33.2]} 5...
c6 {[%clk 0:09:24.8]} 6. Nge2 {[%clk 0:09:16.7]} 6... Be7 {[%clk 0:09:13.1]} 7.
g3 {[%clk 0:09:09.7]} 7... a6 {[%clk 0:09:11.7]} 8. Bg2 {[%clk 0:08:59.8]} 8...
b5 {[%clk 0:09:09.4]} 9. a3 {[%clk 0:08:44.2]} 9... O-O {[%clk 0:09:04.8]} 10.
O-O {[%clk 0:08:44.3]} 10... Rb8 {[%clk 0:08:43.4]} 11. cxb5 {[%clk 0:08:28.6]}
11... axb5 {[%clk 0:08:42.2]} 12. b4 {[%clk 0:08:27.4]} 12... c5 {[%clk
0:08:05.3]} 13. Be3 {[%clk 0:08:12.5]} 13... Qc7 {[%clk 0:07:20.5]} 14. Rc1
{[%clk 0:07:46.4]} 14... Qa7 {[%clk 0:07:18.3]} 15. Qb3 {[%clk 0:07:39.7]} 15...
Qa6 {[%clk 0:07:15]} 16. g4 {[%clk 0:07:24.7]} 16... h6 {[%clk 0:07:08.2]} 17.
Ng3 {[%clk 0:07:23.5]} 17... Re8 {[%clk 0:06:37.8]} 18. Nf5 {[%clk 0:07:14.8]}
18... Bf8 {[%clk 0:06:36.4]} 19. Nd5 {[%clk 0:06:23.2]} 19... Nxd5 {[%clk
0:06:32.1]} 20. exd5 {[%clk 0:06:23.5]} 20... Ra8 {[%clk 0:06:19.5]} 21. Rc3
{[%clk 0:06:10.2]} 21... Qa4 {[%clk 0:06:07.3]} 22. Rfc1 {[%clk 0:05:34.5]}
22... Bb7 {[%clk 0:06:00.5]} 23. Qb1 {[%clk 0:04:46.3]} 23... cxb4 {[%clk
0:05:50.6]} 24. axb4 {[%clk 0:04:46]} 24... Rec8 {[%clk 0:05:48.4]} 25. Rc6
{[%clk 0:03:47.5]} 25... Bxc6 {[%clk 0:05:34.6]} 26. dxc6 {[%clk 0:03:47.3]}
26... Nf6 {[%clk 0:05:35.4]} 27. d4 {[%clk 0:03:25.4]} 27... e4 {[%clk 0:05:26]}
28. Bxe4 {[%clk 0:03:21.4]} 28... d5 {[%clk 0:05:25.4]} 29. Bf3 {[%clk
0:03:14.3]} 29... Qxb4 {[%clk 0:05:23.6]} 30. Qxb4 {[%clk 0:02:10.5]} 30... Bxb4
{[%clk 0:05:22.3]} 31. Rb1 {[%clk 0:02:12.4]} 31... Bf8 {[%clk 0:05:19.5]} 32.
Rxb5 {[%clk 0:02:00.8]} 32... Rxc6 {[%clk 0:05:17.9]} 33. Bxd5 {[%clk
0:01:58.8]} 33... Nxd5 {[%clk 0:05:13.3]} 34. Rxd5 {[%clk 0:02:00.7]} 34... Rac8
{[%clk 0:04:57.1]} 35. Kg2 {[%clk 0:02:00.2]} 35... Kh7 {[%clk 0:04:55]} 36. h4
{[%clk 0:01:58.5]} 36... g6 {[%clk 0:04:53.4]} 37. Ng3 {[%clk 0:01:58.4]} 37...
Rd6 {[%clk 0:04:48.5]} 38. Rb5 {[%clk 0:01:38.2]} 38... Re8 {[%clk 0:04:47.8]}
39. h5 {[%clk 0:01:37.5]} 39... Bg7 {[%clk 0:04:44.4]} 40. hxg6+ {[%clk
0:01:30.5]} 40... fxg6 {[%clk 0:04:42.8]} 41. Ne2 {[%clk 0:01:30.5]} 41... Red8
{[%clk 0:04:24.7]} 42. Kf3 {[%clk 0:01:24.8]} 42... Re6 {[%clk 0:04:16.1]} 43.
Rb7 {[%clk 0:01:21.8]} 43... Rf8+ {[%clk 0:04:13.6]} 44. Kg2 {[%clk 0:01:20.5]}
44... Re4 {[%clk 0:04:10.4]} 45. Kg3 {[%clk 0:01:09.8]} 45... Kg8 {[%clk
0:03:49.8]} 46. Nf4 {[%clk 0:00:55.1]} 46... Rf7 {[%clk 0:03:22.6]} 47. Rb6
{[%clk 0:00:41.3]} 47... Bxd4 {[%clk 0:03:11.9]} 48. Bxd4 {[%clk 0:00:26.7]}
48... Rfxf4 {[%clk 0:03:08.1]} 49. Rxg6+ {[%clk 0:00:19.3]} 49... Kf7 {[%clk
0:03:08]} 50. Rg7+ {[%clk 0:00:17.9]} 50... Ke6 {[%clk 0:02:59.6]} 51. Be3
{[%clk 0:00:16.8]} 51... Rf6 {[%clk 0:02:48.7]} 52. Rh7 {[%clk 0:00:17.4]} 52...
Rg6 {[%clk 0:02:42.2]} 53. Kf3 {[%clk 0:00:14.9]} 53... Rexg4 {[%clk 0:02:39.6]}
54. Rxh6 {[%clk 0:00:14.7]} 54... Kf5 {[%clk 0:02:35.6]} 55. Rxg6 {[%clk
0:00:14.9]} 55... Rxg6 {[%clk 0:02:35.1]} 56. Bc5 {[%clk 0:00:16.8]} 1/2-1/2

[Event "GrandPrix_29.05"]
[Site "Chess.com"]
[Date "2020.05.29"]
[Round "7"]
[White "MilanovicDan"]
[Black "BMOchsner"]
[Result "1-0"]
[WhiteElo "2483"]
[BlackElo "2211"]
[TimeControl "600+2"]
[EndTime "12:31:11 PDT"]
[Termination "MilanovicDan won on time"]

1. d4 {[%clk 0:10:01.9]} 1... Nf6 {[%clk 0:09:58.6]} 2. c4 {[%clk 0:10:02.5]}
2... e6 {[%clk 0:09:56.7]} 3. Nc3 {[%clk 0:10:02.9]} 3... Bb4 {[%clk 0:09:56.7]}
4. e3 {[%clk 0:10:04]} 4... d5 {[%clk 0:09:54.9]} 5. cxd5 {[%clk 0:10:04.1]}
5... exd5 {[%clk 0:09:55.3]} 6. Bd3 {[%clk 0:10:05.2]} 6... O-O {[%clk 0:09:52]}
7. Ne2 {[%clk 0:10:06]} 7... b6 {[%clk 0:08:52.6]} 8. O-O {[%clk 0:10:04.9]}
8... Bb7 {[%clk 0:07:59.8]} 9. a3 {[%clk 0:10:04.7]} 9... Bd6 {[%clk 0:07:56.1]}
10. b4 {[%clk 0:10:05.7]} 10... Re8 {[%clk 0:07:45.4]} 11. Rb1 {[%clk
0:10:01.4]} 11... a6 {[%clk 0:07:45.7]} 12. a4 {[%clk 0:10:00.3]} 12... Nbd7
{[%clk 0:07:21.8]} 13. f3 {[%clk 0:09:45.4]} 13... Qe7 {[%clk 0:06:24.8]} 14. b5
{[%clk 0:09:44.4]} 14... axb5 {[%clk 0:06:21.5]} 15. axb5 {[%clk 0:09:44.8]}
15... Ba3 {[%clk 0:06:02.5]} 16. Bd2 {[%clk 0:09:44.8]} 16... Nf8 {[%clk
0:05:30.8]} 17. Qe1 {[%clk 0:09:24.7]} 17... Bb4 {[%clk 0:04:53.9]} 18. Qf2
{[%clk 0:08:57.8]} 18... Ra2 {[%clk 0:04:18.6]} 19. Rfd1 {[%clk 0:07:51]} 19...
Ra3 {[%clk 0:04:06.2]} 20. g4 {[%clk 0:07:17.2]} 20... Ba5 {[%clk 0:02:34.3]}
21. g5 {[%clk 0:06:33.9]} 21... Nh5 {[%clk 0:02:30.6]} 22. f4 {[%clk 0:06:34.6]}
22... g6 {[%clk 0:02:00.7]} 23. Rbc1 {[%clk 0:06:13.2]} 23... Ng7 {[%clk
0:01:47.1]} 24. Re1 {[%clk 0:05:59.6]} 24... Nd7 {[%clk 0:01:04.2]} 25. Ng3
{[%clk 0:05:51.9]} 25... f5 {[%clk 0:00:53.2]} 26. Bf1 {[%clk 0:05:25.9]} 26...
Qd6 {[%clk 0:00:30.1]} 27. Bg2 {[%clk 0:05:23]} 27... Ra8 {[%clk 0:00:25.3]} 28.
Nge2 {[%clk 0:05:10.7]} 28... Rd8 {[%clk 0:00:17.4]} 29. Rc2 {[%clk 0:05:10]}
29... Nf8 {[%clk 0:00:15.7]} 30. Rb1 {[%clk 0:05:07.4]} 30... Nfe6 {[%clk
0:00:13.1]} 31. Nc1 {[%clk 0:05:01.2]} 31... Bxc3 {[%clk 0:00:09.7]} 32. Bxc3
{[%clk 0:04:58]} 32... Ra4 {[%clk 0:00:10.4]} 33. Nd3 {[%clk 0:04:56.2]} 33...
Rda8 {[%clk 0:00:09.3]} 34. Ne5 {[%clk 0:04:45.2]} 34... Ne8 {[%clk 0:00:08.9]}
35. h4 {[%clk 0:04:40]} 35... Qd8 {[%clk 0:00:04.4]} 36. h5 {[%clk 0:04:34.6]}
36... Nf8 {[%clk 0:00:05]} 37. Bb4 {[%clk 0:04:28.4]} 37... Nd6 {[%clk
0:00:04.5]} 38. Bxd6 {[%clk 0:04:15.9]} 38... Qxd6 {[%clk 0:00:03.9]} 39. Rbc1
{[%clk 0:04:14.7]} 39... Ra1 {[%clk 0:00:04.6]} 40. Kh2 {[%clk 0:04:11.6]} 40...
Rxc1 {[%clk 0:00:05.4]} 41. Rxc1 {[%clk 0:04:12.9]} 41... Rc8 {[%clk 0:00:06.2]}
42. Qa2 {[%clk 0:04:06.7]} 42... Ra8 {[%clk 0:00:06.5]} 43. Qc2 {[%clk
0:04:05.3]} 43... Rc8 {[%clk 0:00:05.4]} 44. Qb3 {[%clk 0:04:04.1]} 44... Kg7
{[%clk 0:00:05.9]} 45. Nc6 {[%clk 0:04:00.3]} 45... Bxc6 {[%clk 0:00:03]} 46.
Rxc6 {[%clk 0:04:00.3]} 46... Qe7 {[%clk 0:00:04.1]} 47. h6+ {[%clk 0:03:35.6]}
47... Kh8 {[%clk 0:00:05.2]} 48. Bxd5 {[%clk 0:03:34.5]} 48... Re8 {[%clk
0:00:04.1]} 49. Qc3 {[%clk 0:03:17.3]} 49... Rc8 {[%clk 0:00:04.8]} 50. Kg3
{[%clk 0:03:09.2]} 50... Qd7 {[%clk 0:00:03]} 51. Qc4 {[%clk 0:02:54.2]} 51...
Qe7 {[%clk 0:00:02.2]} 52. Kf3 {[%clk 0:02:51.9]} 52... Re8 {[%clk 0:00:03]} 53.
Qc3 {[%clk 0:02:53.1]} 53... Rc8 {[%clk 0:00:03.7]} 54. Kf2 {[%clk 0:02:43.3]}
54... Qd7 {[%clk 0:00:03.5]} 55. Bb3 {[%clk 0:02:41.5]} 55... Qe7 {[%clk
0:00:04]} 56. d5+ {[%clk 0:02:40.1]} 1-0

[Event "GrandPrix_29.05"]
[Site "Chess.com"]
[Date "2020.05.29"]
[Round "7"]
[White "Armen_Barseghyan"]
[Black "FLamps8"]
[Result "0-1"]
[WhiteElo "2399"]
[BlackElo "2276"]
[TimeControl "600+2"]
[EndTime "12:31:20 PDT"]
[Termination "FLamps8 won by resignation"]

1. d4 {[%clk 0:10:01.9]} 1... d5 {[%clk 0:10:00.3]} 2. c4 {[%clk 0:10:02]} 2...
e6 {[%clk 0:10:01]} 3. Nc3 {[%clk 0:10:02.6]} 3... Nf6 {[%clk 0:10:01.8]} 4.
cxd5 {[%clk 0:10:02.1]} 4... exd5 {[%clk 0:10:03.7]} 5. Bg5 {[%clk 0:10:01.5]}
5... c6 {[%clk 0:10:04.4]} 6. e3 {[%clk 0:10:01.7]} 6... Qb6 {[%clk 0:10:05.1]}
7. Qc2 {[%clk 0:09:15]} 7... Ne4 {[%clk 0:10:05.1]} 8. Nxe4 {[%clk 0:09:13.9]}
8... dxe4 {[%clk 0:10:07]} 9. Bc4 {[%clk 0:09:13.1]} 9... Qa5+ {[%clk 0:10:07]}
10. Kf1 {[%clk 0:09:01.9]} 10... Qxg5 {[%clk 0:10:07.6]} 11. Qxe4+ {[%clk
0:09:02.8]} 11... Be7 {[%clk 0:10:01.2]} 12. Nf3 {[%clk 0:09:02.9]} 12... Qf5
{[%clk 0:09:55.9]} 13. Qxf5 {[%clk 0:09:03.1]} 13... Bxf5 {[%clk 0:09:57.8]} 14.
Nd2 {[%clk 0:09:01]} 14... Nd7 {[%clk 0:09:55.3]} 15. Ke2 {[%clk 0:09:01.2]}
15... Nb6 {[%clk 0:09:20.2]} 16. Bb3 {[%clk 0:09:01.7]} 16... Be6 {[%clk
0:09:19]} 17. Bxe6 {[%clk 0:09:01]} 17... fxe6 {[%clk 0:09:20.9]} 18. f4 {[%clk
0:09:00.3]} 18... c5 {[%clk 0:09:06.9]} 19. dxc5 {[%clk 0:09:00.6]} 19... Bxc5
{[%clk 0:09:08.8]} 20. Rac1 {[%clk 0:09:01.9]} 20... Rc8 {[%clk 0:08:53.3]} 21.
Ne4 {[%clk 0:08:54.3]} 21... Be7 {[%clk 0:08:53.8]} 22. Rxc8+ {[%clk 0:08:44]}
22... Nxc8 {[%clk 0:08:55.7]} 23. Rc1 {[%clk 0:08:44.6]} 23... Kd7 {[%clk
0:08:37.2]} 24. Rd1+ {[%clk 0:07:38.2]} 24... Kc7 {[%clk 0:08:35.7]} 25. Rc1+
{[%clk 0:07:38.4]} 25... Kb8 {[%clk 0:07:44.6]} 26. Rd1 {[%clk 0:07:38.8]} 26...
b6 {[%clk 0:07:39]} 27. g4 {[%clk 0:06:38.4]} 27... Rd8 {[%clk 0:07:34.1]} 28.
Rc1 {[%clk 0:06:38.8]} 28... Nd6 {[%clk 0:07:26.5]} 29. Nf2 {[%clk 0:06:39.2]}
29... Rc8 {[%clk 0:07:18.3]} 30. Rxc8+ {[%clk 0:06:38.9]} 30... Kxc8 {[%clk
0:07:20.2]} 31. Nd3 {[%clk 0:06:39.4]} 31... Ne4 {[%clk 0:06:37.6]} 32. Kf3
{[%clk 0:06:36]} 32... Nc5 {[%clk 0:06:32.6]} 33. Ne5 {[%clk 0:06:17.7]} 33...
Bf6 {[%clk 0:06:28.7]} 34. Nc4 {[%clk 0:06:18.2]} 34... Nd3 {[%clk 0:05:59.1]}
35. b3 {[%clk 0:05:04.9]} 35... Nc1 {[%clk 0:05:53.7]} 36. e4 {[%clk 0:03:48.3]}
36... Nxa2 {[%clk 0:05:46.1]} 37. e5 {[%clk 0:03:48.4]} 37... Be7 {[%clk
0:05:46.5]} 38. f5 {[%clk 0:03:48.4]} 38... Kd7 {[%clk 0:05:42.3]} 39. Ke4
{[%clk 0:03:26.2]} 39... Nc1 {[%clk 0:05:38.9]} 40. Nd2 {[%clk 0:03:26.7]} 40...
Bb4 {[%clk 0:05:34.9]} 41. Nf3 {[%clk 0:03:27]} 41... Nxb3 {[%clk 0:05:18.4]}
42. f6 {[%clk 0:03:20.7]} 42... gxf6 {[%clk 0:04:57.8]} 43. exf6 {[%clk
0:03:22.6]} 43... Bc3 {[%clk 0:04:49.5]} 44. g5 {[%clk 0:02:46.3]} 44... Nc5+
{[%clk 0:04:49]} 45. Kf4 {[%clk 0:02:46.6]} 45... a5 {[%clk 0:04:47.9]} 46. h4
{[%clk 0:02:45.7]} 46... a4 {[%clk 0:04:45.5]} 47. h5 {[%clk 0:02:46.2]} 47...
a3 {[%clk 0:04:32.6]} 48. h6 {[%clk 0:02:28.1]} 48... a2 {[%clk 0:04:13.3]} 49.
g6 {[%clk 0:02:28.3]} 49... a1=Q {[%clk 0:03:33.5]} 50. g7 {[%clk 0:02:28.6]}
50... Qc1+ {[%clk 0:02:59.9]} 51. Kg4 {[%clk 0:02:02.6]} 51... Qxh6 {[%clk
0:01:28.9]} 52. g8=Q {[%clk 0:02:00.9]} 52... Qg6+ {[%clk 0:01:30.4]} 53. Qxg6
{[%clk 0:01:58.7]} 53... hxg6 {[%clk 0:01:32.3]} 54. f7 {[%clk 0:01:42.6]} 54...
Ke7 {[%clk 0:01:32.4]} 55. Ng5 {[%clk 0:01:42.8]} 55... Bf6 {[%clk 0:01:25.9]}
56. Nxe6 {[%clk 0:01:19.5]} 56... Nxe6 {[%clk 0:01:25.4]} 0-1

[Event "GrandPrix_29.05"]
[Site "Chess.com"]
[Date "2020.05.29"]
[Round "7"]
[White "AnotherGrumpy"]
[Black "Mikhail_Golubev"]
[Result "1-0"]
[WhiteElo "1944"]
[BlackElo "1989"]
[TimeControl "600+2"]
[EndTime "12:31:23 PDT"]
[Termination "AnotherGrumpy won on time"]

1. d4 {[%clk 0:10:00.1]} 1... Nf6 {[%clk 0:09:57.2]} 2. c4 {[%clk 0:09:58.5]}
2... g6 {[%clk 0:09:57.8]} 3. g3 {[%clk 0:09:58.4]} 3... Bg7 {[%clk 0:09:58]} 4.
Bg2 {[%clk 0:09:59.3]} 4... O-O {[%clk 0:09:58.7]} 5. Nc3 {[%clk 0:09:59.2]}
5... d6 {[%clk 0:09:59.3]} 6. Nf3 {[%clk 0:09:55.7]} 6... Nc6 {[%clk 0:10:00.1]}
7. O-O {[%clk 0:09:56.3]} 7... Bf5 {[%clk 0:10:00.4]} 8. Ne1 {[%clk 0:09:56.2]}
8... e5 {[%clk 0:09:53.7]} 9. d5 {[%clk 0:09:53.5]} 9... Ne7 {[%clk 0:09:54]}
10. e4 {[%clk 0:09:53.6]} 10... Bc8 {[%clk 0:09:43.6]} 11. Nd3 {[%clk 0:09:53]}
11... Nd7 {[%clk 0:09:39.9]} 12. Be3 {[%clk 0:09:47.7]} 12... f5 {[%clk
0:09:38]} 13. f3 {[%clk 0:09:48.8]} 13... b6 {[%clk 0:08:21]} 14. b4 {[%clk
0:09:32.6]} 14... f4 {[%clk 0:07:57.4]} 15. Bf2 {[%clk 0:09:26.6]} 15... g5
{[%clk 0:07:52.1]} 16. Qd2 {[%clk 0:09:17.9]} 16... Nf6 {[%clk 0:07:42.4]} 17.
c5 {[%clk 0:09:11.8]} 17... Ng6 {[%clk 0:07:27.8]} 18. Rac1 {[%clk 0:09:00.5]}
18... h5 {[%clk 0:06:58]} 19. cxd6 {[%clk 0:08:51]} 19... cxd6 {[%clk 0:06:58]}
20. Nb5 {[%clk 0:08:51.2]} 20... Rf7 {[%clk 0:06:56.3]} 21. Rc6 {[%clk
0:08:48.8]} 21... Bf8 {[%clk 0:06:19.8]} 22. Rfc1 {[%clk 0:08:35]} 22... Ne8
{[%clk 0:05:09.7]} 23. Nxa7 {[%clk 0:08:28.6]} 23... Rfxa7 {[%clk 0:04:58.7]}
24. Bxb6 {[%clk 0:08:27.6]} 24... Qd7 {[%clk 0:04:42]} 25. Bxa7 {[%clk
0:06:33.4]} 25... Qxa7+ {[%clk 0:04:40.3]} 26. Qf2 {[%clk 0:06:34.6]} 26... Qb7
{[%clk 0:03:39.2]} 27. gxf4 {[%clk 0:05:59.3]} 27... exf4 {[%clk 0:03:27.4]} 28.
Bf1 {[%clk 0:05:06.1]} 28... Nh4 {[%clk 0:02:55.6]} 29. Nxf4 {[%clk 0:04:47.9]}
29... Bd7 {[%clk 0:02:19.4]} 30. R6c2 {[%clk 0:04:29.4]} 30... Ba4 {[%clk
0:01:51]} 31. Rd2 {[%clk 0:04:17.5]} 31... Qf7 {[%clk 0:01:49.2]} 32. Ne6 {[%clk
0:03:56.7]} 32... Nxf3+ {[%clk 0:01:46.8]} 33. Kh1 {[%clk 0:03:56.4]} 33... Nxd2
{[%clk 0:01:47.5]} 34. Qxd2 {[%clk 0:03:54.5]} 34... Bd7 {[%clk 0:01:37.2]} 35.
Qxg5+ {[%clk 0:03:48]} 35... Ng7 {[%clk 0:01:35.6]} 36. Bh3 {[%clk 0:03:37]}
36... Rxa2 {[%clk 0:01:19.1]} 37. Rf1 {[%clk 0:03:30.9]} 37... Rf2 {[%clk
0:01:14.7]} 38. Rg1 {[%clk 0:03:09.7]} 38... Qf3+ {[%clk 0:01:02.3]} 39. Bg2
{[%clk 0:03:10.9]} 39... Qg4 {[%clk 0:01:01.7]} 40. Qe3 {[%clk 0:02:55.2]} 40...
Qh4 {[%clk 0:00:24.8]} 41. Ng5 {[%clk 0:02:27.9]} 41... Qf4 {[%clk 0:00:16.2]}
42. Qa7 {[%clk 0:02:07.5]} 42... Bg4 {[%clk 0:00:11]} 43. Ne6 {[%clk 0:01:48.9]}
43... Nxe6 {[%clk 0:00:08.7]} 44. dxe6 {[%clk 0:01:50.8]} 44... Re2 {[%clk
0:00:08.5]} 45. Rf1 {[%clk 0:01:44.7]} 1-0

[Event "GrandPrix_29.05"]
[Site "Chess.com"]
[Date "2020.05.29"]
[Round "7"]
[White "Pidzsy"]
[Black "Jan1401"]
[Result "1-0"]
[WhiteElo "2197"]
[BlackElo "2153"]
[TimeControl "600+2"]
[EndTime "12:31:36 PDT"]
[Termination "Pidzsy won by checkmate"]

1. e4 {[%clk 0:10:01.9]} 1... e6 {[%clk 0:09:59.6]} 2. d4 {[%clk 0:10:03]} 2...
d5 {[%clk 0:10:00.6]} 3. Nd2 {[%clk 0:10:03.6]} 3... Nc6 {[%clk 0:10:00.7]} 4.
Ngf3 {[%clk 0:10:01.4]} 4... Nf6 {[%clk 0:10:00.8]} 5. e5 {[%clk 0:10:02.4]}
5... Nd7 {[%clk 0:10:01.5]} 6. Bd3 {[%clk 0:10:03.4]} 6... Nb4 {[%clk
0:10:01.5]} 7. Be2 {[%clk 0:10:03.9]} 7... c5 {[%clk 0:10:02.5]} 8. c3 {[%clk
0:10:05.5]} 8... Nc6 {[%clk 0:10:03.4]} 9. O-O {[%clk 0:10:05.8]} 9... Be7
{[%clk 0:10:03.3]} 10. Re1 {[%clk 0:10:05.1]} 10... a5 {[%clk 0:10:03.3]} 11. a4
{[%clk 0:10:05.5]} 11... Qb6 {[%clk 0:09:36.2]} 12. Nb1 {[%clk 0:09:43.4]} 12...
O-O {[%clk 0:09:06]} 13. Na3 {[%clk 0:09:37]} 13... f6 {[%clk 0:09:03.6]} 14.
exf6 {[%clk 0:09:32.2]} 14... Nxf6 {[%clk 0:09:04.2]} 15. Nb5 {[%clk 0:09:28.2]}
15... Bd7 {[%clk 0:08:54.1]} 16. Bf4 {[%clk 0:09:22.1]} 16... Rac8 {[%clk
0:08:29.4]} 17. Be5 {[%clk 0:09:13.7]} 17... Ne4 {[%clk 0:08:15.5]} 18. Bd3
{[%clk 0:09:08]} 18... cxd4 {[%clk 0:07:41.7]} 19. Nbxd4 {[%clk 0:07:59.5]}
19... Rxf3 {[%clk 0:06:53.6]} 20. gxf3 {[%clk 0:07:16]} 20... Nxe5 {[%clk
0:06:37.4]} 21. fxe4 {[%clk 0:07:16.8]} 21... Bd6 {[%clk 0:05:25.9]} 22. exd5
{[%clk 0:07:03.2]} 22... exd5 {[%clk 0:05:24.6]} 23. Bxh7+ {[%clk 0:06:54]}
23... Kxh7 {[%clk 0:05:10.9]} 24. Qh5+ {[%clk 0:06:54.6]} 24... Kg8 {[%clk
0:05:12]} 25. Rxe5 {[%clk 0:06:56.2]} 25... Rf8 {[%clk 0:04:07.3]} 26. Rxd5
{[%clk 0:06:13.4]} 26... Qxb2 {[%clk 0:03:39.1]} 27. Rxd6 {[%clk 0:05:30.4]}
27... Qxa1+ {[%clk 0:03:24.7]} 28. Kg2 {[%clk 0:05:31]} 28... Be8 {[%clk
0:03:24.4]} 29. Qd5+ {[%clk 0:05:18.6]} 29... Bf7 {[%clk 0:03:23.1]} 30. Qg5
{[%clk 0:05:18.2]} 30... Qxc3 {[%clk 0:03:12.1]} 31. Nf5 {[%clk 0:05:18.4]}
31... Re8 {[%clk 0:03:01.9]} 32. Rd4 {[%clk 0:03:53.5]} 32... Qc6+ {[%clk
0:02:51.8]} 33. f3 {[%clk 0:03:52.2]} 33... Re2+ {[%clk 0:02:39.1]} 34. Kg3
{[%clk 0:03:46.2]} 34... Qc7+ {[%clk 0:02:36.2]} 35. Rf4 {[%clk 0:03:33.7]}
35... Be8 {[%clk 0:02:15.8]} 36. h4 {[%clk 0:02:56.6]} 36... Re6 {[%clk
0:02:12.7]} 37. h5 {[%clk 0:02:55.8]} 37... Kh7 {[%clk 0:02:13.3]} 38. Kh3
{[%clk 0:02:49.8]} 38... Qd7 {[%clk 0:02:02.5]} 39. Rg4 {[%clk 0:02:46.8]} 39...
Rf6 {[%clk 0:01:33.7]} 40. Qxg7+ {[%clk 0:02:07.5]} 40... Qxg7 {[%clk
0:01:32.5]} 41. Rxg7+ {[%clk 0:02:09.4]} 41... Kh8 {[%clk 0:01:33.8]} 42. Rg5
{[%clk 0:02:11.1]} 42... Bxa4 {[%clk 0:01:31.7]} 43. Nh4 {[%clk 0:02:02.3]}
43... Bd7+ {[%clk 0:01:28.1]} 44. Kg3 {[%clk 0:02:02.6]} 44... a4 {[%clk
0:01:14.4]} 45. Ra5 {[%clk 0:01:44.5]} 45... Ra6 {[%clk 0:01:14.4]} 46. Rd5
{[%clk 0:01:43.2]} 46... Bc6 {[%clk 0:01:13.4]} 47. Rd8+ {[%clk 0:01:40.6]}
47... Kg7 {[%clk 0:01:13.3]} 48. Nf5+ {[%clk 0:01:41]} 48... Kh7 {[%clk
0:01:10.7]} 49. Rc8 {[%clk 0:01:23.3]} 49... a3 {[%clk 0:01:04.5]} 50. Rc7+
{[%clk 0:01:24.1]} 50... Kh8 {[%clk 0:01:05.3]} 51. Ne7 {[%clk 0:01:09.9]} 51...
a2 {[%clk 0:01:04.5]} 52. Ng6+ {[%clk 0:00:57.9]} 52... Kg8 {[%clk 0:01:04.6]}
53. h6 {[%clk 0:00:59.2]} 53... a1=Q {[%clk 0:01:05.2]} 54. h7# {[%clk
0:01:00.3]} 1-0

[Event "GrandPrix_29.05"]
[Site "Chess.com"]
[Date "2020.05.29"]
[Round "7"]
[White "Bulldog167"]
[Black "BairaKovanova"]
[Result "1-0"]
[WhiteElo "2458"]
[BlackElo "2209"]
[TimeControl "600+2"]
[EndTime "12:31:43 PDT"]
[Termination "Bulldog167 won by resignation"]

1. e4 {[%clk 0:10:01.9]} 1... e5 {[%clk 0:10:00.1]} 2. f4 {[%clk 0:10:02.3]}
2... d5 {[%clk 0:09:59.7]} 3. exd5 {[%clk 0:10:03]} 3... exf4 {[%clk 0:10:00.6]}
4. Nf3 {[%clk 0:10:03.5]} 4... Nf6 {[%clk 0:10:01.5]} 5. Bc4 {[%clk 0:10:04]}
5... Nxd5 {[%clk 0:09:32.6]} 6. O-O {[%clk 0:10:04.5]} 6... Be7 {[%clk
0:09:33.3]} 7. Bb3 {[%clk 0:10:05.5]} 7... c5 {[%clk 0:08:13.3]} 8. Re1 {[%clk
0:09:08.9]} 8... Nc6 {[%clk 0:07:55.6]} 9. d4 {[%clk 0:08:47.1]} 9... O-O {[%clk
0:07:21.8]} 10. Bxd5 {[%clk 0:08:13.7]} 10... Qxd5 {[%clk 0:07:15.6]} 11. Nc3
{[%clk 0:08:14.8]} 11... Qd8 {[%clk 0:06:43.3]} 12. d5 {[%clk 0:08:14]} 12...
Nd4 {[%clk 0:05:59.2]} 13. Nxd4 {[%clk 0:08:13.6]} 13... cxd4 {[%clk 0:05:59.8]}
14. Qxd4 {[%clk 0:08:14.8]} 14... Bf5 {[%clk 0:04:41.9]} 15. Bxf4 {[%clk
0:07:48.4]} 15... Bxc2 {[%clk 0:04:39.9]} 16. d6 {[%clk 0:07:26.8]} 16... Bf6
{[%clk 0:04:39.8]} 17. Be5 {[%clk 0:07:28.3]} 17... Bxe5 {[%clk 0:04:38]} 18.
Rxe5 {[%clk 0:07:30.2]} 18... Re8 {[%clk 0:03:59.7]} 19. Rxe8+ {[%clk
0:05:12.4]} 19... Qxe8 {[%clk 0:03:58.1]} 20. d7 {[%clk 0:05:14.3]} 20... Qf8
{[%clk 0:03:35.2]} 21. Re1 {[%clk 0:05:06.8]} 21... Rd8 {[%clk 0:03:32.3]} 22.
Nd5 {[%clk 0:05:05.6]} 22... h6 {[%clk 0:03:03.9]} 23. Nc7 {[%clk 0:04:41.7]}
23... Ba4 {[%clk 0:02:57.2]} 24. Qxa4 {[%clk 0:03:08.5]} 24... Qc5+ {[%clk
0:02:54.6]} 25. Kh1 {[%clk 0:03:09.6]} 25... Qxc7 {[%clk 0:02:53.4]} 26. Rd1
{[%clk 0:02:55.8]} 26... Qc6 {[%clk 0:02:32.3]} 27. Qd4 {[%clk 0:02:47.3]} 27...
b6 {[%clk 0:02:15.9]} 28. h3 {[%clk 0:02:47.1]} 28... Qe6 {[%clk 0:02:05.8]} 29.
Qc3 {[%clk 0:02:27.9]} 29... Kf8 {[%clk 0:00:27.6]} 30. Qa3+ {[%clk 0:02:08.4]}
30... Qe7 {[%clk 0:00:23.9]} 31. Qxa7 {[%clk 0:02:07.9]} 31... Qe2 {[%clk
0:00:24]} 32. Qa3+ {[%clk 0:01:54.8]} 32... Qe7 {[%clk 0:00:18.1]} 33. Qd3
{[%clk 0:01:41.6]} 33... Qc5 {[%clk 0:00:12.7]} 34. Qd6+ {[%clk 0:01:10.5]}
34... Qxd6 {[%clk 0:00:12.3]} 35. Rxd6 {[%clk 0:01:12.4]} 35... Ke7 {[%clk
0:00:12.1]} 36. Rxb6 {[%clk 0:01:13.5]} 36... Rxd7 {[%clk 0:00:13.3]} 37. a4
{[%clk 0:01:14.6]} 37... f5 {[%clk 0:00:09.9]} 38. a5 {[%clk 0:01:14.7]} 38...
Rd1+ {[%clk 0:00:10.5]} 39. Kh2 {[%clk 0:01:15.7]} 39... f4 {[%clk 0:00:09.4]}
40. a6 {[%clk 0:01:11.7]} 40... Ra1 {[%clk 0:00:09.6]} 41. b4 {[%clk 0:01:11]}
41... Ra2 {[%clk 0:00:09.4]} 42. Kg1 {[%clk 0:01:11.8]} 42... g5 {[%clk
0:00:08.6]} 43. Rxh6 {[%clk 0:01:10.6]} 43... Kf7 {[%clk 0:00:09.3]} 44. b5
{[%clk 0:01:11.2]} 1-0